fUSD/lending_fUSD_20240222
["ID","MTS","AMOUNT","RATE_DAILY","PERIOD"]
[314819121,1708567865934,-500.0,0.0003589,2]
[314819122,1708567865944,-500.0,0.0003589,2]
[314819123,1708567865955,-500.0,0.0003589,2]
[314819124,1708567865965,-500.0,0.0003589,2]
[314819125,1708567865976,-1033.35,0.0003589,2]
[314819126,1708567865999,-500.0,0.0003589,2]
[314819127,1708567866018,-500.0,0.0003589,2]
[314819128,1708567866038,-500.0,0.0003589,2]
[314819129,1708567866060,-500.0,0.0003589,2]
[314819130,1708567866079,-585.92554518,0.0003589,2]
[314819131,1708567866099,-500.0,0.0003589,2]
[314819132,1708567866118,-500.0,0.0003589,2]
[314819133,1708567866138,-506.83646932,0.0003589,2]
[314819134,1708567866157,-500.0,0.0003589,2]
[314819135,1708567866176,-500.0,0.0003589,2]
[314819136,1708567866198,-500.0,0.0003589,2]
[314819137,1708567866213,-150.0,0.0003589,2]
[314819138,1708567866228,-500.0,0.0003589,2]
[314819139,1708567866248,-8571.32,0.0003589,2]
[314819140,1708567866262,-500.0,0.0003589,2]
[314819141,1708567866277,-500.0,0.0003589,2]
[314819142,1708567866292,-500.0,0.0003589,2]
[314819143,1708567866308,-642.53,0.0003589,2]
[314819144,1708567866325,-500.0,0.0003589,2]
[314819145,1708567866343,-500.0,0.0003589,2]
[314819146,1708567866359,-859.36,0.0003589,2]
[314819147,1708567866375,-500.0,0.0003589,2]
[314819148,1708567866391,-176.7500648,0.0003589,2]
[314819149,1708567866406,-500.0,0.0003589,2]
[314819150,1708567866422,-398.55836324,0.0003589,2]
[314819151,1708567866437,-500.0,0.0003589,2]
[314819152,1708567866454,-500.0,0.0003589,2]
[314819153,1708567866471,-500.0,0.0003589,2]
[314819154,1708567866487,-500.0,0.0003589,2]
[314819155,1708567866504,-503.4717632,0.0003589,2]
[314819156,1708567866522,-761.14,0.0003589,2]
[314819157,1708567866538,-548.88040208,0.0003589,2]
[314819158,1708567866554,-500.0,0.0003589,2]
[314819159,1708567866570,-2128.15,0.0003589,2]
[314819160,1708567866590,-500.0,0.0003589,2]
[314819161,1708567866607,-506.92311226,0.0003589,2]
[314819162,1708567866624,-500.0,0.0003589,2]
[314819163,1708567866640,-500.0,0.0003589,2]
[314819164,1708567866655,-500.0,0.0003589,2]
[314819165,1708567866673,-500.0,0.0003589,2]
[314819166,1708567866689,-961.82,0.0003589,2]
[314819167,1708567866705,-544.87195981,0.0003589,2]
[314819168,1708567866721,-3510.96,0.0003589,2]
[314819169,1708567866736,-402.38450143,0.0003589,2]
[314819170,1708567866758,-500.0,0.0003589,2]
[314819171,1708567866774,-500.0,0.0003589,2]
[314819172,1708567866789,-500.0,0.0003589,2]
[314819173,1708567866805,-1458.5,0.0003589,2]
[314819174,1708567866820,-500.0,0.0003589,2]
[314819175,1708567866839,-1210.72,0.0003589,2]
[314819176,1708567866855,-526.14595899,0.0003589,2]
[314819177,1708567866870,-500.0,0.0003589,2]
[314819178,1708567866885,-500.0,0.0003589,2]
[314819179,1708567866900,-514.3,0.0003589,2]
[314819180,1708567866915,-500.0,0.0003589,2]
[314819181,1708567866931,-1038.56,0.0003589,2]
[314819182,1708567866947,-502.97066325,0.0003589,2]
[314819183,1708567866962,-500.0,0.0003589,2]
[314819184,1708567866977,-500.0,0.0003589,2]
[314819185,1708567866994,-1481.34,0.0003589,2]
[314819186,1708567867009,-500.0,0.0003589,2]
[314819187,1708567867024,-500.0,0.0003589,2]
[314819188,1708567867039,-500.0,0.0003589,2]
[314819189,1708567867054,-503.40094342,0.0003589,2]
[314819190,1708567867069,-500.0,0.0003589,2]
[314819191,1708567867086,-500.0,0.0003589,2]
[314819192,1708567867101,-500.0,0.0003589,2]
[314819193,1708567867116,-500.0,0.0003589,2]
[314819194,1708567867131,-500.0,0.0003589,2]
[314819195,1708567867145,-1505.51,0.0003589,2]
[314819196,1708567867159,-500.0,0.0003589,2]
[314819197,1708567867175,-794.87,0.0003589,2]
[314819198,1708567867189,-500.0,0.0003589,2]
[314819199,1708567867204,-3562.02,0.0003589,2]
[314819200,1708567867219,-439.86403807,0.0003589,2]
[314819201,1708567867234,-657.9,0.0003589,2]
[314819202,1708567867249,-504.05836854,0.0003589,2]
[314819203,1708567867264,-500.0,0.0003589,2]
[314819204,1708567867279,-500.0,0.0003589,2]
[314819205,1708567867295,-3288.88,0.0003589,2]
[314819206,1708567867309,-507.89838842,0.0003589,14]
[314819207,1708567867325,-500.0,0.0003589,2]
[314819208,1708567867341,-1403.99,0.0003589,2]
[314819209,1708567867355,-500.0,0.0003589,2]
[314819210,1708567867371,-1191.13,0.0003589,2]
[314819211,1708567867387,-500.0,0.0003589,2]
[314819212,1708567867402,-500.0,0.0003589,2]
[314819213,1708567867418,-1811.78,0.0003589,2]
[314819214,1708567867434,-500.0,0.0003589,2]
[314819215,1708567867451,-500.0,0.0003589,2]
[314819216,1708567867470,-500.0,0.0003589,2]
[314819217,1708567867486,-556.51295122,0.0003589,2]
[314819218,1708567867501,-500.0,0.0003589,2]
[314819219,1708567867516,-500.0,0.0003589,2]
[314819220,1708567867532,-710.27,0.0003589,2]
[314819221,1708567867548,-1085.16,0.0003589,2]
[314819222,1708567867563,-500.0,0.0003589,2]
[314819223,1708567867577,-6835.16,0.0003589,2]
[314819224,1708567867592,-500.0,0.0003589,2]
[314819225,1708567867608,-500.0,0.0003589,2]
[314819226,1708567867624,-500.0,0.0003589,2]
[314819227,1708567867639,-521.05762313,0.0003589,2]
[314819228,1708567867654,-500.0,0.0003589,2]
[314819229,1708567867670,-500.0,0.0003589,2]
[314819230,1708567867684,-500.0,0.0003589,2]
[314819231,1708567867699,-500.0,0.0003589,2]
[314819232,1708567867715,-557.01543021,0.0003589,2]
[314819233,1708567867729,-500.0,0.0003589,2]
[314819234,1708567867744,-501.57,0.0003589,2]
[314819235,1708567867758,-500.0,0.0003589,2]
[314819236,1708567867772,-500.0,0.0003589,2]
[314819237,1708567867786,-500.0,0.0003589,2]
[314819238,1708567867801,-506.3,0.0003589,2]
[314819239,1708567867815,-500.0,0.0003589,2]
[314819240,1708567867831,-22672.68,0.0003589,2]
[314819241,1708567867845,-500.0,0.0003589,2]
[314819242,1708567867859,-500.0,0.0003589,2]
[314819243,1708567867874,-503.04,0.0003589,2]
[314819244,1708567867889,-704.89,0.0003589,2]
[314819245,1708567867903,-4981.87,0.0003589,2]
[314819246,1708567867917,-773.95,0.0003589,2]
[314819247,1708567867931,-521.99970766,0.0003589,2]
[314819248,1708567867944,-500.0,0.0003589,2]
[314819249,1708567867959,-1300.92,0.0003589,2]
[314819250,1708567867972,-532.53719971,0.0003589,2]
[314819251,1708567867987,-500.0,0.0003589,2]
[314819252,1708567868003,-500.0,0.0003589,2]
[314819253,1708567868012,-970.54,0.0003589,2]
[314819254,1708567868021,-500.0,0.0003589,2]
[314819255,1708567868030,-11848.11,0.0003589,2]
[314819256,1708567868040,-2330.41,0.0003589,2]
[314819257,1708567868362,-2944.64,0.0003589,2]
[314819258,1708567868390,-500.0,0.0003589,2]
[314819259,1708567868413,-500.0,0.0003589,2]
[314819260,1708567868423,-575.3,0.0003589,2]
[314819261,1708567868433,-9458.59,0.0003589,2]
[314819262,1708567868442,-500.0,0.0003589,2]
[314819263,1708567868453,-769.95,0.0003589,2]
[314819264,1708567868469,-500.0,0.0003589,2]
[314819265,1708567868482,-1014.96,0.0003589,2]
[314819266,1708567868491,-500.0,0.0003589,2]
[314819267,1708567868501,-500.0,0.0003589,2]
[314819268,1708567868511,-500.0,0.0003589,2]
[314819269,1708567868520,-526.28,0.0003589,2]
[314819270,1708567868531,-500.0,0.0003589,2]
[314819271,1708567868540,-500.0,0.0003589,2]
[314819272,1708567868549,-500.0,0.0003589,2]
[314819273,1708567868558,-500.0,0.0003589,2]
[314819274,1708567868569,-2676.02,0.0003589,2]
[314819275,1708567868580,-500.0,0.0003589,2]
[314819276,1708567868589,-500.0,0.0003589,2]
[314819277,1708567868598,-500.0,0.0003589,2]
[314819278,1708567868608,-648.3,0.0003589,2]
[314819279,1708567868617,-500.0,0.0003589,2]
[314819280,1708567868627,-506.52650878,0.0003589,2]
[314819281,1708567868637,-500.0,0.0003589,2]
[314819282,1708567868647,-500.0,0.0003589,2]
[314819283,1708567868656,-8147.61,0.0003589,2]
[314819284,1708567868666,-500.0,0.0003589,2]
[314819285,1708567868675,-1501.53,0.0003589,2]
[314819286,1708567868685,-1152.94,0.0003589,2]
[314819287,1708567868694,-500.0,0.0003589,2]
[314819288,1708567868704,-500.0,0.0003589,2]
[314819289,1708567868713,-500.0,0.0003589,2]
[314819290,1708567868722,-3196.52,0.0003589,2]
[314819291,1708567868732,-3215.19,0.0003589,2]
[314819292,1708567868742,-1233.59,0.0003589,2]
[314819293,1708567868751,-767.97,0.0003589,2]
[314819294,1708567868760,-500.0,0.0003589,2]
[314819295,1708567868769,-500.0,0.0003589,2]
[314819296,1708567868779,-503.59820512,0.0003589,2]
[314819297,1708567868788,-500.0,0.0003589,2]
[314819298,1708567868797,-522.97473804,0.0003589,2]
[314819299,1708567868806,-754.9,0.0003589,2]
[314819300,1708567868816,-478.1023633,0.0003589,2]
[314819301,1708567868827,-500.0,0.0003589,2]
[314819302,1708567868836,-500.0,0.0003589,2]
[314819303,1708567868845,-2384.53,0.0003589,2]
[314819304,1708567868855,-500.0,0.0003589,2]
[314819305,1708567868864,-500.0,0.0003589,2]
[314819306,1708567868873,-500.0,0.0003589,2]
[314819307,1708567868882,-500.0,0.0003589,2]
[314819308,1708567868892,-1003.63,0.0003589,2]
[314819309,1708567868901,-241.21,0.0003589,2]
[314819310,1708567868911,-2520.65,0.0003589,2]
[314819311,1708567868920,-1606.66,0.0003589,2]
[314819312,1708567868929,-970.4,0.0003589,2]
[314819313,1708567868938,-1086.49,0.0003589,2]
[314819314,1708567868947,-500.0,0.0003589,2]
[314819315,1708567868957,-500.0,0.0003589,2]
[314819316,1708567868966,-15107.87,0.0003589,2]
[314819317,1708567868975,-500.0,0.0003589,2]
[314819318,1708567868985,-500.0,0.0003589,2]
[314819319,1708567868994,-506.90188665,0.0003589,2]
[314819320,1708567869003,-500.0,0.0003589,2]
[314819321,1708567869013,-500.0,0.0003589,2]
[314819322,1708567869022,-500.0,0.0003589,2]
[314819323,1708567869032,-500.0,0.0003589,2]
[314819324,1708567869041,-500.0,0.0003589,2]
[314819325,1708567869050,-295.08,0.0003589,2]
[314819326,1708567869060,-505.20868535,0.0003589,2]
[314819327,1708567869069,-513.85771234,0.0003589,2]
[314819328,1708567869081,-2737.61,0.0003589,2]
[314819329,1708567869090,-500.0,0.0003589,2]
[314819330,1708567869100,-741.14,0.0003589,2]
[314819331,1708567869109,-756.65,0.0003589,2]
[314819332,1708567869118,-500.0,0.0003589,2]
[314819333,1708567869128,-827.66,0.0003589,2]
[314819334,1708567869139,-500.0,0.0003589,2]
[314819335,1708567869149,-500.0,0.0003589,2]
[314819336,1708567869159,-500.0,0.0003589,2]
[314819337,1708567869168,-935.94,0.0003589,2]
[314819338,1708567869177,-344.34456887,0.0003589,2]
[314819339,1708567869187,-500.0,0.0003589,2]
[314819340,1708567869200,-5727.23,0.0003589,2]
[314819341,1708567869209,-500.0,0.0003589,2]
[314819342,1708567869219,-198.33400066,0.0003589,2]
[314819343,1708567869228,-843.54,0.0003589,2]
[314819344,1708567869237,-500.0,0.0003589,2]
[314819345,1708567869246,-3284.01,0.0003589,2]
[314819346,1708567869256,-500.0,0.0003589,2]
[314819347,1708567869265,-1126.62,0.0003589,2]
[314819348,1708567869275,-500.0,0.0003589,2]
[314819349,1708567869284,-500.0,0.0003589,2]
[314819350,1708567869293,-500.0,0.0003589,2]
[314819351,1708567869303,-500.0,0.0003589,2]
[314819352,1708567869312,-500.0,0.0003589,2]
[314819353,1708567869321,-501.98,0.0003589,2]
[314819354,1708567869333,-500.0,0.0003589,2]
[314819355,1708567869343,-500.0,0.0003589,2]
[314819356,1708567869353,-500.0,0.0003589,2]
[314819357,1708567869363,-500.0,0.0003589,2]
[314819358,1708567869372,-1576.19,0.0003589,2]
[314819359,1708567869383,-795.19,0.0003589,2]
[314819360,1708567869392,-405.88065044,0.0003589,2]
[314819361,1708567869403,-5075.49,0.0003589,2]
[314819362,1708567869412,-500.0,0.0003589,2]
[314819363,1708567869423,-11105.96,0.0003589,2]
[314819364,1708567869432,-500.0,0.0003589,2]
[314819365,1708567869442,-801.22,0.0003589,2]
[314819366,1708567869453,-500.0,0.0003589,2]
[314819367,1708567869466,-214.17116011,0.0003589,2]
[314819368,1708567869476,-550.82,0.0003589,2]
[314819369,1708567869491,-16462.29,0.0003589,2]
[314819370,1708567869504,-378.00276817,0.0003589,2]
[314819371,1708567869514,-500.0,0.0003589,2]
[314819372,1708567869523,-513.38810701,0.0003589,2]
[314819373,1708567869533,-234.93498041,0.0003589,2]
[314819374,1708567869542,-500.0,0.0003589,2]
[314819375,1708567869553,-500.0,0.0003589,2]
[314819376,1708567869562,-500.0,0.0003589,2]
[314819377,1708567869571,-500.0,0.0003589,2]
[314819378,1708567869582,-1249.14,0.0003589,2]
[314819379,1708567869592,-500.0,0.0003589,2]
[314819380,1708567869601,-785.21,0.0003589,2]
[314819381,1708567869611,-7956.98,0.0003589,2]
[314819382,1708567869620,-2805.24,0.0003589,2]
[314819383,1708567869630,-598.59,0.0003589,2]
[314819384,1708567869639,-500.0,0.0003589,2]
[314819385,1708567869649,-510.96064012,0.0003589,2]
[314819386,1708567869659,-500.0,0.0003589,2]
[314819387,1708567869668,-500.0,0.0003589,2]
[314819388,1708567869678,-500.0,0.0003589,2]
[314819389,1708567869687,-959.77,0.0003589,2]
[314819390,1708567869697,-247.85030234,0.0003589,2]
[314819391,1708567869706,-1443.2,0.0003589,2]
[314819392,1708567869715,-500.0,0.0003589,2]
[314819393,1708567869724,-47931.73,0.0003589,2]
[314819394,1708567869734,-1558.04,0.0003589,2]
[314819395,1708567869743,-500.0,0.0003589,2]
[314819396,1708567869753,-500.0,0.0003589,2]
[314819397,1708567869763,-500.0,0.0003589,2]
[314819398,1708567869772,-500.0,0.0003589,2]
[314819399,1708567869781,-10168.05,0.0003589,2]
[314819400,1708567869791,-500.0,0.0003589,2]
[314819401,1708567869800,-524.74291876,0.0003589,2]
[314819402,1708567869809,-4523.22,0.0003589,2]
[314819403,1708567869819,-500.0,0.0003589,2]
[314819404,1708567869830,-500.0,0.0003589,2]
[314819405,1708567869839,-1286.83,0.0003589,2]
[314819406,1708567869848,-500.0,0.0003589,2]
[314819407,1708567869857,-500.0,0.0003589,2]
[314819408,1708567869866,-500.0,0.0003589,2]
[314819409,1708567869876,-500.0,0.0003589,2]
[314819410,1708567869885,-624.82,0.0003589,2]
[314819411,1708567869894,-2117.58,0.0003589,2]
[314819412,1708567869903,-500.0,0.0003589,2]
[314819413,1708567869913,-500.0,0.0003589,2]
[314819414,1708567869923,-625.0,0.0003589,2]
[314819415,1708567869932,-1097.79,0.0003589,2]
[314819416,1708567869942,-1839.11,0.0003589,2]
[314819417,1708567869951,-506.2985173,0.0003589,2]
[314819418,1708567869960,-500.0,0.0003589,2]
[314819419,1708567869969,-500.0,0.0003589,2]
[314819420,1708567869979,-2953.41,0.0003589,2]
[314819421,1708567869988,-1239.0,0.0003589,2]
[314819422,1708567869997,-500.0,0.0003589,2]
[314819423,1708567870007,-500.0,0.0003589,2]
[314819424,1708567870016,-3401.61,0.0003589,2]
[314819425,1708567870025,-500.0,0.0003589,2]
[314819426,1708567870034,-16077.83,0.0003589,2]
[314819427,1708567870044,-500.0,0.0003589,2]
[314819428,1708567870053,-500.0,0.0003589,2]
[314819429,1708567870062,-18726.5,0.0003589,2]
[314819430,1708567870071,-500.0,0.0003589,2]
[314819431,1708567870081,-500.0,0.0003589,2]
[314819432,1708567870090,-500.0,0.0003589,2]
[314819433,1708567870099,-536.19,0.0003589,2]
[314819434,1708567870108,-500.0,0.0003589,2]
[314819435,1708567870118,-500.0,0.0003589,2]
[314819436,1708567870127,-500.0,0.0003589,2]
[314819437,1708567870137,-647.76,0.0003589,2]
[314819438,1708567870146,-515.12176087,0.0003589,2]
[314819439,1708567870155,-500.0,0.0003589,2]
[314819440,1708567870164,-500.0,0.0003589,2]
[314819441,1708567870174,-970.8,0.0003589,2]
[314819442,1708567870183,-500.0,0.0003589,2]
[314819443,1708567870193,-1190.36,0.0003589,2]
[314819444,1708567870202,-500.0,0.0003589,2]
[314819445,1708567870211,-988.83,0.0003589,2]
[314819446,1708567870221,-500.0,0.0003589,2]
[314819447,1708567870230,-500.0,0.0003589,2]
[314819448,1708567870240,-500.0,0.0003589,2]
[314819449,1708567870249,-1579.35,0.0003589,2]
[314819450,1708567870259,-500.0,0.0003589,2]
[314819451,1708567870269,-500.0,0.0003589,2]
[314819452,1708567870278,-1764.0,0.0003589,2]
[314819453,1708567870288,-506.02175816,0.0003589,2]
[314819454,1708567870297,-500.0,0.0003589,2]
[314819455,1708567870306,-500.0,0.0003589,2]
[314819456,1708567870316,-8170.97,0.0003589,2]
[314819457,1708567870325,-500.0,0.0003589,2]
[314819458,1708567870335,-5112.8,0.0003589,2]
[314819459,1708567870345,-637.81,0.0003589,2]
[314819460,1708567870354,-923.19,0.0003589,2]
[314819461,1708567870363,-1256.1,0.0003589,2]
[314819462,1708567870373,-500.0,0.0003589,2]
[314819463,1708567870382,-508.31932134,0.0003589,2]
[314819464,1708567870391,-502.85,0.0003589,2]
[314819465,1708567870401,-961.69,0.0003589,2]
[314819466,1708567870410,-905.27,0.0003589,2]
[314819467,1708567870420,-500.0,0.0003589,2]
[314819468,1708567870429,-1239.99,0.0003589,2]
[314819469,1708567870439,-500.0,0.0003589,2]
[314819470,1708567870449,-1751.61,0.0003589,2]
[314819471,1708567870462,-4720.94,0.0003589,2]
[314819472,1708567870472,-500.0,0.0003589,2]
[314819473,1708567870482,-2348.06,0.0003589,2]
[314819474,1708567870491,-689.24,0.0003589,2]
[314819475,1708567870501,-500.0,0.0003589,2]
[314819476,1708567870511,-2606.07,0.0003589,2]
[314819477,1708567870520,-517.9,0.0003589,2]
[314819478,1708567870530,-761.03,0.0003589,2]
[314819479,1708567870541,-500.0,0.0003589,2]
[314819480,1708567870552,-500.0,0.0003589,2]
[314819481,1708567870562,-500.0,0.0003589,2]
[314819482,1708567870571,-500.0,0.0003589,2]
[314819483,1708567870581,-500.0,0.0003589,2]
[314819484,1708567870591,-500.0,0.0003589,2]
[314819485,1708567870600,-502.65579115,0.0003589,2]
[314819486,1708567870610,-809.53,0.0003589,2]
[314819487,1708567870619,-2325.19,0.0003589,2]
[314819488,1708567870628,-1054.4,0.0003589,2]
[314819489,1708567870638,-500.0,0.0003589,2]
[314819490,1708567870648,-1475.39,0.0003589,2]
[314819491,1708567870657,-500.0,0.0003589,2]
[314819492,1708567870667,-500.0,0.0003589,2]
[314819493,1708567870677,-500.0,0.0003589,2]
[314819494,1708567870687,-500.0,0.0003589,2]
[314819495,1708567870696,-685.55,0.0003589,2]
[314819496,1708567870706,-500.0,0.0003589,2]
[314819497,1708567870715,-663.24,0.0003589,2]
[314819498,1708567870725,-500.0,0.0003589,2]
[314819499,1708567870734,-500.0,0.0003589,2]
[314819500,1708567870743,-500.0,0.0003589,2]
[314819501,1708567870752,-1835.44,0.0003589,2]
[314819502,1708567870761,-500.0,0.0003589,2]
[314819503,1708567870771,-500.0,0.0003589,2]
[314819504,1708567870780,-1020.58,0.0003589,2]
[314819505,1708567870789,-500.0,0.0003589,2]
[314819506,1708567870798,-617.16,0.0003589,2]
[314819507,1708567870808,-500.0,0.0003589,2]
[314819508,1708567870817,-500.0,0.0003589,2]
[314819509,1708567870828,-524.46,0.0003589,2]
[314819510,1708567870837,-500.0,0.0003589,2]
[314819511,1708567870847,-500.0,0.0003589,2]
[314819512,1708567870856,-500.0,0.0003589,2]
[314819513,1708567870866,-515.98216138,0.0003589,2]
[314819514,1708567870876,-500.0,0.0003589,2]
[314819515,1708567870886,-1756.06,0.0003589,2]
[314819516,1708567870895,-500.0,0.0003589,2]
[314819517,1708567870905,-500.0,0.0003589,2]
[314819518,1708567870914,-1014.28,0.0003589,2]
[314819519,1708567870923,-1775.26,0.0003589,2]
[314819520,1708567870932,-3939.18,0.0003589,2]
[314819521,1708567870941,-542.82,0.0003589,2]
[314819522,1708567870951,-1000.0,0.0003589,7]
[314819523,1708567870960,-500.0,0.0003589,2]
[314819524,1708567870970,-500.0,0.0003589,2]
[314819525,1708567870979,-982.25,0.0003589,2]
[314819526,1708567870988,-500.0,0.0003589,2]
[314819527,1708567870997,-500.0,0.0003589,2]
[314819528,1708567871007,-500.0,0.0003589,2]
[314819529,1708567871016,-3328.54,0.0003589,2]
[314819530,1708567871025,-500.0,0.0003589,2]
[314819531,1708567871035,-500.0,0.0003589,2]
[314819532,1708567871044,-540.1,0.0003589,2]
[314819533,1708567871054,-4721.11,0.0003589,2]
[314819534,1708567871063,-500.0,0.0003589,2]
[314819535,1708567871073,-500.0,0.0003589,2]
[314819536,1708567871084,-500.0,0.0003589,2]
[314819537,1708567871093,-500.0,0.0003589,2]
[314819538,1708567871103,-821.91,0.0003589,2]
[314819539,1708567871112,-500.0,0.0003589,2]
[314819540,1708567871121,-3621.29,0.0003589,2]
[314819541,1708567871131,-3015.57,0.0003589,2]
[314819542,1708567871140,-2632.08,0.0003589,2]
[314819543,1708567871150,-500.0,0.0003589,2]
[314819544,1708567871159,-500.0,0.0003589,2]
[314819545,1708567871168,-500.0,0.0003589,2]
[314819546,1708567871178,-500.0,0.0003589,2]
[314819547,1708567871187,-1116.58,0.0003589,2]
[314819548,1708567871196,-778.84,0.0003589,2]
[314819549,1708567871206,-500.0,0.0003589,2]
[314819550,1708567871215,-500.0,0.0003589,2]
[314819551,1708567871224,-1384.58,0.0003589,2]
[314819552,1708567871233,-175.66261423,0.0003589,2]
[314819553,1708567871243,-612.06,0.0003589,2]
[314819554,1708567871252,-776.63,0.0003589,2]
[314819555,1708567871262,-1851.23,0.0003589,2]
[314819556,1708567871272,-500.0,0.0003589,2]
[314819557,1708567871281,-500.0,0.0003589,2]
[314819558,1708567871290,-500.0,0.0003589,2]
[314819559,1708567871299,-2152.75,0.0003589,2]
[314819560,1708567871308,-500.0,0.0003589,2]
[314819561,1708567871317,-500.0,0.0003589,2]
[314819562,1708567871328,-1513.56,0.0003589,2]
[314819563,1708567871338,-500.0,0.0003589,2]
[314819564,1708567871347,-1271.42,0.0003589,2]
[314819565,1708567871357,-1753.88,0.0003589,2]
[314819566,1708567871366,-500.0,0.0003589,2]
[314819567,1708567871375,-1772.15,0.0003589,2]
[314819568,1708567871385,-1176.53,0.0003589,2]
[314819569,1708567871395,-3077.14,0.0003589,2]
[314819570,1708567871404,-1173.97,0.0003589,2]
[314819571,1708567871414,-518.6472464,0.0003589,2]
[314819572,1708567871423,-500.0,0.0003589,2]
[314819573,1708567871433,-500.0,0.0003589,2]
[314819574,1708567871443,-955.99,0.0003589,2]
[314819575,1708567871455,-1948.38,0.0003589,2]
[314819576,1708567871465,-609.6,0.0003589,2]
[314819577,1708567871475,-500.0,0.0003589,2]
[314819578,1708567871484,-1549.07,0.0003589,2]
[314819579,1708567871494,-500.0,0.0003589,2]
[314819580,1708567871504,-500.0,0.0003589,2]
[314819581,1708567871513,-500.0,0.0003589,2]
[314819582,1708567871522,-500.0,0.0003589,2]
[314819583,1708567871534,-2103.9,0.0003589,2]
[314819584,1708567871543,-500.0,0.0003589,2]
[314819585,1708567871552,-620.07,0.0003589,2]
[314819586,1708567871733,-5798.22,0.0003589,2]
[314819587,1708567871770,-525.0,0.0003589,2]
[314819588,1708567871779,-500.0,0.0003589,2]
[314819589,1708567871789,-2948.11,0.0003589,2]
[314819590,1708567871798,-500.0,0.0003589,2]
[314819591,1708567871808,-1041.15,0.0003589,2]
[314819592,1708567871818,-506.39700267,0.0003589,2]
[314819593,1708567871829,-500.0,0.0003589,2]
[314819594,1708567871839,-500.0,0.0003589,2]
[314819595,1708567871849,-9387.21,0.0003589,2]
[314819596,1708567871859,-500.0,0.0003589,2]
[314819597,1708567871869,-500.0,0.0003589,2]
[314819598,1708567871879,-500.0,0.0003589,2]
[314819599,1708567871888,-500.0,0.0003589,2]
[314819600,1708567871897,-4861.35,0.0003589,2]
[314819601,1708567871906,-500.0,0.0003589,2]
[314819602,1708567871916,-754.37,0.0003589,2]
[314819603,1708567871925,-1431.54,0.0003589,2]
[314819604,1708567871934,-500.0,0.0003589,2]
[314819605,1708567871944,-3903.5,0.0003589,2]
[314819606,1708567871953,-1070.4,0.0003589,2]
[314819607,1708567871962,-500.0,0.0003589,2]
[314819608,1708567871971,-799.54,0.0003589,2]
[314819609,1708567871980,-500.0,0.0003589,2]
[314819610,1708567871990,-3618.29,0.0003589,2]
[314819611,1708567871999,-500.0,0.0003589,2]
[314819612,1708567872008,-500.0,0.0003589,2]
[314819613,1708567872017,-8712.42,0.0003589,2]
[314819614,1708567872027,-1474.18,0.0003589,2]
[314819615,1708567872036,-500.0,0.0003589,2]
[314819616,1708567872045,-502.36855736,0.0003589,2]
[314819617,1708567872055,-1348.49,0.0003589,2]
[314819618,1708567872064,-20548.49,0.0003589,2]
[314819619,1708567872073,-13925.52,0.0003589,2]
[314819620,1708567872083,-500.0,0.0003589,2]